{"text_format":"3","workbook":"xlsx","n_sheets":2,"sheets":["BU ÇALIŞMA KİTABINI KULLANMA","NOT DEFTERİ"],"not_rendered":{"defined_names":5},"read":"whole","date_system":"1900"}

{"sheet":"BU ÇALIŞMA KİTABINI KULLANMA","index":0,"n_rows":10,"n_cols":2,"rows_kept":10}
[null,"YÖNERGELER"]
[null,"NOT DEFTERİ çalışma sayfasını kullanarak her ödevin belirli bir puan değerinde olduğu notları hesaplayın. "]
[null,"Yönergeler: Notların bir kopyasını kaydettiğinizden emin olun."]
[null,"1. Okul adını, sınıf bilgisini, öğrenci adlarını ve öğrenci numaralarını (isteğe bağlı) yazın.   "]
[null,"2. Kullandığınız puanlama sistemine göre Not ve Not Ortalaması tablosunu ayarlayın."]
[null,"3. G7 hücresinden başlayarak ödev ya da test adlarını ve her birinin yüzde değerini yazın (ör. \"Final” ve \"%50\"). "]
[null,"4. Her öğrencinin her bir ödev ya da testte aldığı puanı yazın. “Puan”, “Ltr Notu” ve “Not Ortalaması” sütunları otomatik olarak hesaplanır, ancak isterseniz bunları geçersiz kılabilirsiniz. Tüm notlar girilene kadar notların hesaplanma şekli, ortalama ve final notları tamamlanamaz."]
[null,"Alanda yazdırılan öğeyi değiştirmek istiyorsanız Sayfa Düzeni menüsündeki “Yazdırma Alanı” komutunu kullanın."]
[null,"Testlerin ve ödevlerin %100’ü tamamlanana kadar Puan, Ltr Notu ve Not Ortalaması geçerli değildir. "]
[null,"G7 - W8 arasındaki hücrelere her ödevi ya da testi ve toplam nottaki yüzdesini girin."]

{"sheet":"NOT DEFTERİ","index":1,"n_rows":20,"n_cols":23,"rows_kept":20,"merged":[[5,1,5,5],[6,1,6,3],[6,4,6,5],[7,1,8,3],[7,4,7,5],[8,4,8,5],[15,1,15,5],[16,1,16,2],[17,1,17,2],[18,1,18,2],[19,1,19,2]]}
[null,"OKULUNUZUN ADI"]
[]
[{"$nulls":6},"Puan",{"v":0,"d":"0%"},{"v":0.6,"d":"60%"},{"v":0.63,"d":"63%"},{"v":0.67,"d":"67%"},{"v":0.7,"d":"70%"},{"v":0.73,"d":"73%"},{"v":0.77,"d":"77%"},{"v":0.8,"d":"80%"},{"v":0.83,"d":"83%"},{"v":0.87,"d":"87%"},{"v":0.9,"d":"90%"},{"v":0.93,"d":"93%"},{"v":0.97,"d":"97%"}]
[{"$nulls":6},"Ltr Notu","F","D-","D","D+","C-","C","C+","B-","B","B+","A-","A","A+"]
[{"$nulls":6},"Not Ortalaması",0,0.67,1,1.33,1.67,2,2.33,2.67,3,3.33,3.67,4,4]
[null,"Öğretmen Adı"]
[null,"Ders/Proje",null,null,"Ödev veya Test Adı"]
[null,"Yıl/Dönem/Çeyrek",null,null,"Yüzde (Toplamı %100 olmalı)"]
[{"$nulls":4},{"$f":"\"Toplam yüzde: \"&SUM(G8:W8)*100&\"%\"","v":"Toplam yüzde: 0%"}]
[null,"Öğrenci Adı","Öğrenci Numarası","Puan","Ltr Notu","Not Ortalaması","Sütun 6","Sütun 7","Sütun 8","Sütun 9","Sütun 10","Sütun 11","Sütun 12","Sütun 13","Sütun 14","Sütun 15","Sütun 16","Sütun 17","Sütun 18","Sütun 19","Sütun 20","Sütun 21","Sütun 22"]
[{"$nulls":3},{"$f":"(IF(SUM(Notlar[[#This Row],[Sütun 6]:[Sütun 22]]),ROUND(SUMPRODUCT($G$8:$W$8,Notlar[[#This Row],[Sütun 6]:[Sütun 22]]),2),\"\"))","v":""},{"$f":"IF(Notlar[[#This Row],[Puan]]<>\"\",HLOOKUP(Notlar[[#This Row],[Puan]],NotTablosu,2),\"\")","v":""},{"$f":"IF(Notlar[[#This Row],[Puan]]<>\"\",HLOOKUP(Notlar[[#This Row],[Puan]],NotTablosu,3),\"\")","v":""}]
[{"$nulls":3},{"$f":"(IF(SUM(Notlar[[#This Row],[Sütun 6]:[Sütun 22]]),ROUND(SUMPRODUCT($G$8:$W$8,Notlar[[#This Row],[Sütun 6]:[Sütun 22]]),2),\"\"))","v":""},{"$f":"IF(Notlar[[#This Row],[Puan]]<>\"\",HLOOKUP(Notlar[[#This Row],[Puan]],NotTablosu,2),\"\")","v":""},{"$f":"IF(Notlar[[#This Row],[Puan]]<>\"\",HLOOKUP(Notlar[[#This Row],[Puan]],NotTablosu,3),\"\")","v":""}]
[{"$nulls":3},{"$f":"(IF(SUM(Notlar[[#This Row],[Sütun 6]:[Sütun 22]]),ROUND(SUMPRODUCT($G$8:$W$8,Notlar[[#This Row],[Sütun 6]:[Sütun 22]]),2),\"\"))","v":""},{"$f":"IF(Notlar[[#This Row],[Puan]]<>\"\",HLOOKUP(Notlar[[#This Row],[Puan]],NotTablosu,2),\"\")","v":""},{"$f":"IF(Notlar[[#This Row],[Puan]]<>\"\",HLOOKUP(Notlar[[#This Row],[Puan]],NotTablosu,3),\"\")","v":""}]
[{"$nulls":3},{"$f":"(IF(SUM(Notlar[[#This Row],[Sütun 6]:[Sütun 22]]),ROUND(SUMPRODUCT($G$8:$W$8,Notlar[[#This Row],[Sütun 6]:[Sütun 22]]),2),\"\"))","v":""},{"$f":"IF(Notlar[[#This Row],[Puan]]<>\"\",HLOOKUP(Notlar[[#This Row],[Puan]],NotTablosu,2),\"\")","v":""},{"$f":"IF(Notlar[[#This Row],[Puan]]<>\"\",HLOOKUP(Notlar[[#This Row],[Puan]],NotTablosu,3),\"\")","v":""}]
[{"$nulls":3},{"$f":"(IF(SUM(Notlar[[#This Row],[Sütun 6]:[Sütun 22]]),ROUND(SUMPRODUCT($G$8:$W$8,Notlar[[#This Row],[Sütun 6]:[Sütun 22]]),2),\"\"))","v":""},{"$f":"IF(Notlar[[#This Row],[Puan]]<>\"\",HLOOKUP(Notlar[[#This Row],[Puan]],NotTablosu,2),\"\")","v":""},{"$f":"IF(Notlar[[#This Row],[Puan]]<>\"\",HLOOKUP(Notlar[[#This Row],[Puan]],NotTablosu,3),\"\")","v":""}]
[]
[null,"Sınıf Özeti",null,"Puan","Ltr Notu","Not Ortalaması","","","","","","","","","","",""]
[null," Ortalama",null,{"$f":"IFERROR(AVERAGE(Notlar[[#All],[Puan]]),0)","v":{"v":0,"d":"0.0%"}},{"$f":"IFERROR(HLOOKUP(D18,NotTablosu,2),\"\")","v":"F"},{"$f":"IFERROR(AVERAGE(Notlar[[#All],[Not Ortalaması]]),0)","v":0},"","","","","","","","","","","","","","","","",""]
[null," En Yüksek Puan",null,{"$f":"IFERROR(MAX(Notlar[[#All],[Puan]]),0)","v":{"v":0,"d":"0.0%"}},{"$f":"IFERROR(HLOOKUP(D19,NotTablosu,2),\"\")","v":"F"},{"$f":"IFERROR(MAX(Notlar[[#All],[Not Ortalaması]]),0)","v":0},"","","","","","","","","","","","","","","","",""]
[null," En Düşük Puan",null,{"$f":"IFERROR(MIN(Notlar[[#All],[Puan]]),0)","v":{"v":0,"d":"0.0%"}},{"$f":"IFERROR(HLOOKUP(D20,NotTablosu,2),\"\")","v":"F"},{"$f":"IFERROR(MIN(Notlar[[#All],[Not Ortalaması]]),0)","v":0},"","","","","","","","","","","","","","","","",""]